Cogmind - Beta 15 @@@ ROGUE MODE // 2025.05.31 @ 23:34:15 Player: KADW Result: Destroyed by DX-YC9(R) with Subdweller Laser Performance ------------- Evolutions (0) 0 Regions Visited (3) 600 Robots Destroyed (22) 110 Value Destroyed (375) 375 Prototype IDs (0) 0 Alien Tech Used (0) 0 Bonus (67) 67 TOTAL SCORE: 1152 Bonus ------- Follower Combat Kills 67 Cogmind --------- Core Integrity 0/250 Matter 270/300 Energy 58/100 System Corruption 0% Temperature Cool (6) Movement Treading (240) Ox1 Location -10/Subcaves Parts ------- > --- POWER (1) -------- (None) > --- PROPULSION (2) --- Light Treads > --- UTILITY (2) ------ Large Storage Unit > --- WEAPON (2) ------- Spread Laser Assault Rifle > --- INVENTORY (15) --- Ion Engine Light Ion Engine Light Nuclear Core Compact Wheel Compact Wheel Small Storage Unit Structural Scanner Improved Terrain Scanner Utility Shielding Weapon Shielding Medium Laser Datajack Peak State ------------ > --- POWER ------------ Ion Engine > --- PROPULSION ------- Light Treads Wheel > --- UTILITY ---------- Large Storage Unit Seismic Detector > --- WEAPON ----------- Spread Laser Light Assault Rifle > --- INVENTORY -------- Ion Engine Light Ion Engine Light Nuclear Core Light Treads Compact Wheel Compact Wheel Small Storage Unit Structural Scanner Improved Terrain Scanner Utility Shielding Weapon Shielding Medium Laser Spread Laser Assault Rifle Datajack [Rating: 10] Favorites ----------- Power Light Ion Engine Engine Light Ion Engine Propulsion Light Treads Treads Light Treads Wheel Wheel Utility Utility Shielding Device Seismic Detector Storage Large Storage Unit Protection Utility Shielding Weapon Spread Laser Energy Gun Spread Laser Ballistic Gun Light Assault Rifle Build | -11 -10 -10 -10 ------- Run | Yrd Mat Min Sub Slots Evolved . | . . . . Power . | . . . . Propulsion . | . . . . Utility . | . . . . Weapon . | . . . . Parts Attached 20 | 8 5 5 2 Power 4 | 1 1 2 . Engine 4 | 1 1 2 . Core . | . . . . Reactor . | . . . . Propulsion 5 | 3 1 . 1 Treads 3 | 2 1 . . Leg . | . . . . Wheel 2 | 1 . . 1 Hover . | . . . . Flight . | . . . . Utility 5 | 2 1 2 . Device 2 | 1 . 1 . Storage 2 | 1 . 1 . Processor . | . . . . Hackware . | . . . . Protection 1 | . 1 . . Artifact . | . . . . Weapon 6 | 2 2 1 1 Energy Gun 3 | 1 1 . 1 Energy Cannon . | . . . . Ballistic Gun 3 | 1 1 1 . Ballistic Cannon . | . . . . Launcher . | . . . . Special Weapon . | . . . . Impact Weapon . | . . . . Slashing Weapon . | . . . . Piercing Weapon . | . . . . Special Melee Weapon . | . . . . Unidentified Prototypes . | . . . . Parts Lost 8 | . . 1 7 Power 2 | . . 1 1 Propulsion 3 | . . . 3 Utility 1 | . . . 1 Weapon 2 | . . . 2 Highest Loss Streak 7 | . . 1 7 To Critical Strikes . | . . . . Average Backups 10 | 4 7 13 15 Power 1 | 1 1 1 2 Propulsion 3 | 2 3 3 3 Utility 3 | 1 2 4 5 Weapon 1 | . 1 2 3 Tool/Special . | . . . . Unused Backups 15 | 1 3 2 9 Power 4 | . 1 1 2 Propulsion 2 | . . . 2 Utility 6 | 1 1 1 3 Weapon 2 | . 1 . 1 Tool/Special 1 | . . . 1 Average Slot Usage (%) 98 | . 98 100 85 Engine 13 | . 14 14 11 Treads 13 | . 14 14 11 Wheel 13 | . 14 14 9 Device 3 | . . 4 11 Storage 14 | . 14 14 14 Protection 9 | . 12 9 . Energy Gun 13 | . 14 14 11 Ballistic Gun 14 | . 14 14 14 Peak Build Rating 10 | 9 9 9 10 Average Rating 8 | 5 8 8 7 On Entrance 6 | . 7 9 9 Naked Turns . | . . . . Heaviest Build 31 | 12 13 31 30 Greatest Support 40 | 40 20 10 10 Greatest Overweight (x) 3 | 1 1 3 2 Average Overweight (x) 1 | . . 2 2 Largest Inventory Capacity 15 | 8 8 15 15 Average Capacity 11 | 7 8 14 15 Most Carried 15 | 8 8 15 15 Average Carried 10 | 5 7 14 14 Final Capacity 15 | 8 8 15 15 Final Carried 15 | 8 8 15 12 Class Distribution -------------------- 100% | Mutant Dominant Class ---------------- Mutant | -10/Materials Mutant | -10/Mines Mutant | -10/Subcaves Resources | -11 -10 -10 -10 ----------- Run | Yrd Mat Min Sub Matter Collected 511 | 298 40 154 19 Remotely . | . . . . Salvage Created 618 | 159 208 211 40 Parts 41 | 15 10 14 2 Haulers Intercepted . | . . . . Recyclers Shooed . | . . . . Parts Field Recycled . | . . . . Retrieved Matter . | . . . . Parts Self-Destructed 4 | . . . 4 Prevented . | . . . . Kills | -11 -10 -10 -10 ------- Run | Yrd Mat Min Sub Combat Hostiles Destroyed 14 | . 6 7 1 Guns 14 | . 6 7 1 Classes Destroyed 4 | 2 2 . . Tunneler 6 | 5 . 1 . Recycler 2 | 1 . 1 . Swarmer 7 | . 1 6 . Grunt 7 | . 5 1 1 Best Kill Streak 5 | 2 3 5 1 Combat Bots Only 3 | . 3 3 1 Max Kills in Single Turn 2 | 1 1 2 1 Gunslinging . | . . . . Exploded . | . . . . Melee . | . . . . Uniques/NPCs Destroyed . | . . . . Combat | -11 -10 -10 -10 -------- Run | Yrd Mat Min Sub Hostile Shots Fired 111 | . 47 44 20 Missed 39 | . 17 16 6 Hits 72 | . 30 28 14 Projectile 72 | . 30 28 14 AOE 5 | . . . 5 Damage Taken 1097 | . 336 281 480 Core 256 | . 91 36 129 Absorbed by Shields . | . . . . Redirected to Shielding 8 | . 3 5 . Core Remaining (%) 100 | 100 . . . Volleys Fired 83 | 18 30 24 11 Largest 2 | 2 2 2 2 Hottest 85 | 70 70 85 85 Shots Fired 153 | 36 60 43 14 Gun 153 | 36 60 43 14 Cannon . | . . . . Launcher . | . . . . Special . | . . . . Kinetic 83 | 18 30 24 11 Thermal 70 | 18 30 19 3 Explosive . | . . . . Electromagnetic . | . . . . Robot Hit Streak 19 | 4 6 19 5 Robot Miss Streak 9 | 4 5 9 3 Penetration Max . | . . . . Secondary Targets 3 | . 1 2 . Max Gunslinging Chain 1 | . 1 1 . Shots Hit Robots 93 | 14 37 32 10 Core Hits 53 | 8 12 27 6 Critical Kills . | . . . . Critical Parts Destroyed . | . . . . Critical Strikes 1 | . 1 . . Burn 1 | . 1 . . Melee Attacks . | . . . . Impact . | . . . . Slashing . | . . . . Piercing . | . . . . Sneak Attacks . | . . . . Combat Hostiles . | . . . . Follow-up Attacks . | . . . . Damage Inflicted 1054 | 135 367 451 101 Guns 1054 | 135 367 451 101 Cannons . | . . . . Explosions . | . . . . Melee . | . . . . Ramming . | . . . . Kinetic 468 | 50 147 202 69 Thermal 586 | 85 220 249 32 Explosive . | . . . . Electromagnetic . | . . . . Impact . | . . . . Slashing . | . . . . Piercing . | . . . . Highest Corruption . | . . . . Average Corruption . | . . . . Corruption Purged . | . . . . Corruption Blocked . | . . . . Overload Shots . | . . . . Overflow Damage . | . . . . Projectiles . | . . . . Explosions . | . . . . Melee . | . . . . Knockbacks . | . . . . Impact . | . . . . Kinetic . | . . . . Secondary . | . . . . Self-Inflicted Damage . | . . . . Shots . | . . . . Rammed . | . . . . Targets Rammed . | . . . . Kicked . | . . . . Crushed . | . . . . Highest Temperature 238 | 100 238 154 10 Average Temperature 64 | 44 83 56 6 Received Heat Transfer 294 | . 159 69 66 Siege Activations . | . . . . Martial Activations . | . . . . Shielding Activations . | . . . . Robots Disrupted . | . . . . Combat Hostiles . | . . . . Robots Corrupted . | . . . . Combat Hostiles . | . . . . Parts Fried . | . . . . Impact Corruptions . | . . . . Robots Melted . | . . . . Combat Hostiles . | . . . . Parts Melted 4 | . 3 1 . Heat Transferred 1334 | 259 740 300 35 Parts Sabotaged . | . . . . Parts Stolen . | . . . . Parts Stripped . | . . . . Power Chain Reactions . | . . . . Alert | -11 -10 -10 -10 ------- Run | Yrd Mat Min Sub Maximum Alert Level . | . . . . Low Security (%) 100 | 100 100 100 . Level 1 . | . . . . Level 2 . | . . . . Level 3 . | . . . . Level 4 . | . . . . Level 5 . | . . . . High Security . | . . . . Max Security . | . . . . Peak Influence 150 | 5 150 132 . Initial 39 | . . 39 . Average 45 | 2 70 46 . Influence Increases 575 | 30 215 279 51 Destroy 0b10 Robot/C 340 | . 120 180 40 Destroy 0b10 Robot/NC 40 | 30 . 10 . Destroy Leader 70 | . 20 40 10 Allied During Kill 50 | . . 49 1 Lose Combat Pursuer 75 | . 75 . . Influence Decreases 575 | 30 115 287 143 Entered New Map 109 | . . 61 48 Time Decay 331 | 30 115 176 10 Lost Part 55 | . . 10 45 Lost Ally 80 | . . 40 40 Squads Dispatched 2 | . 2 . . Investigation 1 | . 1 . . Extermination . | . . . . Reinforcement 1 | . 1 . . Assault . | . . . . Garrison . | . . . . Intercept . | . . . . Searches Triggered . | . . . . Construction Impeded . | . . . . Haulers Reinforced . | . . . . Active Scanning Responses . | . . . . Cargo Convoy Interrupts . | . . . . Stealth | -11 -10 -10 -10 --------- Run | Yrd Mat Min Sub Distress Signals 1 | . 1 . . Communications Jammed . | . . . . Distress Signals . | . . . . Times Spotted 25 | . 13 8 4 Peak Tracking Total 5 | . 5 3 4 Tactical Retreats 4 | . 4 . . Traps | -11 -10 -10 -10 ------- Run | Yrd Mat Min Sub Traps Triggered . | . . . . Indirectly . | . . . . Trap Hack Attempts . | . . . . Triggered . | . . . . Disarmed . | . . . . Reprogrammed . | . . . . Reused . | . . . . Traps Extracted . | . . . . Installed . | . . . . Triggered . | . . . . Machines | -11 -10 -10 -10 ---------- Run | Yrd Mat Min Sub Machines Disabled . | . . . . Max in Single Turn . | . . . . Machines Repaired . | . . . . Machines Dismantled . | . . . . Machines Sabotaged . | . . . . Overloaded Fab Kills . | . . . . Hacking | -11 -10 -10 -10 --------- Run | Yrd Mat Min Sub Machines Accessed 2 | . 2 . . Terminals 2 | . 2 . . Fabricators . | . . . . Repair Stations . | . . . . Recycling Units . | . . . . Scanalyzers . | . . . . Garrison Access . | . . . . Total Hacks 6 | . 6 . . Successful 2 | . 2 . . Failed 4 | . 4 . . Catastrophic 1 | . 1 . . Database Lockouts . | . . . . Manual 5 | . 5 . . Terminals 6 | . 6 . . Fabricators . | . . . . Repair Stations . | . . . . Recycling Units . | . . . . Scanalyzers . | . . . . Garrison Access . | . . . . Terminal Hacks 1 | . 1 . . Record 1 | . 1 . . Fabricator Hacks . | . . . . Repair Station Hacks . | . . . . Recycling Unit Hacks . | . . . . Scanalyzer . | . . . . Garrison Access Hacks . | . . . . Unauthorized Hacks 1 | . 1 . . Terminals 1 | . 1 . . Botnet 1 | . 1 . . Fabricators . | . . . . Repair Stations . | . . . . Recycling Units . | . . . . Scanalyzers . | . . . . Garrison Access . | . . . . Data Cores Recovered . | . . . . Used . | . . . . Hacking Detections 2 | . 2 . . Full Trace Events 1 | . 1 . . Feedback Events . | . . . . Feedback Blocked . | . . . . Robot Schematics Acquired . | . . . . Robots Built . | . . . . Authchips . | . . . . Time . | . . . . Total Robot Build Rating . | . . . . Part Schematics Acquired . | . . . . Parts Built . | . . . . Authchips . | . . . . Time . | . . . . Total Part Build Rating . | . . . . Parts Repaired . | . . . . Time . | . . . . Parts Recycled . | . . . . Recycled Matter . | . . . . Retrieved Matter . | . . . . Retrieved Components . | . . . . Parts Scanalyzed . | . . . . Part Schematics Acquired . | . . . . Parts Damaged . | . . . . Bothacking | -11 -10 -10 -10 ------------ Run | Yrd Mat Min Sub Used RIF Installer . | . . . . Robots Hacked . | . . . . Non-combat . | . . . . Combat . | . . . . Robot Hacks Applied . | . . . . Relay Couplers Released . | . . . . Fabnet Peak Effective % . | . . . . Robots Rewired . | . . . . Allies Hacked . | . . . . Hacks Repelled . | . . . . Allies | -11 -10 -10 -10 -------- Run | Yrd Mat Min Sub Total Allies 5 | . . 5 . Largest Group 5 | . . 5 2 Highest-Rated Group 78 | . . 78 32 Highest-Rated Ally 31 | . . 31 16 Total Orders . | . . . . Ally Attacks 17 | . . 8 9 Total Damage 209 | . . 131 78 Kills 4 | . . 3 1 Allies Corrupted . | . . . . Allies Melted . | . . . . Intel | -11 -10 -10 -10 ------- Run | Yrd Mat Min Sub Active Infowar (turns) 230 | 3 . 185 42 Terrain 3 | 3 . . . Seismic 227 | . . 185 42 Robot Analysis Total . | . . . . Derelict Logs Recovered 1 | . . 1 . Drone Launches . | . . . . Drone Recoveries . | . . . . Exploration | -11 -10 -10 -10 ------------- Run | Yrd Mat Min Sub Turns Passed 1064 | 183 287 544 50 Spaces Moved 718 | 120 174 404 20 Core 5 | 5 . . . Treads 39 | 4 35 . . Legs . | . . . . Wheels 674 | 111 139 404 20 Hover . | . . . . Flight . | . . . . Fastest Speed 50 | 50 95 95 110 Average Speed 108 | 93 108 112 110 Slowest Speed 160 | 160 160 125 110 Overloaded Moves . | . . . . Propulsion Burnouts . | . . . . Robots Hopped . | . . . . Potential Cave-ins . | . . . . Cave-ins Triggered . | . . . . Exploration Rate (%) 27 | 8 30 70 3 Regions Visited 3 Branch Regions 2 Pre-discovered Areas 2 | . . 2 . Known Exits Taken . | . . . . Unknown Exits Taken 3 | 1 1 1 . Scrap Searched 2 | . . 2 . Spaces Dug . | . . . . Terrain Destroyed . | . . . . Melee . | . . . . Projectile . | . . . . AOE . | . . . . Terrain Rammed . | . . . . Walls Destroyed . | . . . . Machines Disabled . | . . . . Actions | -11 -10 -10 -10 --------- Run | Yrd Mat Min Sub Total 867 | 155 223 452 37 Wait 7 | . 3 4 . Move 715 | 119 173 403 20 Hop . | . . . . Pick Up 22 | 7 4 10 1 Fast Attach 10 | 8 1 1 . Attach 5 | . . 1 4 Detach 3 | 2 . 1 . Swap 8 | . 4 3 1 Drop 14 | 1 8 5 . Fire 83 | 18 30 24 11 Melee . | . . . . Ram . | . . . . Kick . | . . . . Crush . | . . . . Escape Stasis . | . . . . Rewire . | . . . . Trap . | . . . . Miscellaneous . | . . . . Route ------- -11/Scrapyard -10/Materials -10/Mines (discovered 2 exits: [*Mat] / [*Sub]) -10/Subcaves History --------- Turn | Location | Event 7 | -11/Scrapyard | Discovered new exit (range 15) 184 | -11/Scrapyard | Entered Materials 307 | -10/Materials | Build established: Mutant 407 | -10/Materials | Discovered new exit (range 12) 471 | -10/Materials | Entered Mines 476 | -10/Mines | Assisted by bots powering up and referring to "LRC-V3" 536 | -10/Mines | Found DCF Scrap (15 items) 696 | -10/Mines | Learned location of Storage (-9) 870 | -10/Mines | Core integrity fell below 50% 982 | -10/Mines | Discovered new exit (range 9) 989 | -10/Mines | Discovered new exit (range 9) 1015 | -10/Mines | Entered Subcaves 1015 | -10/Subcaves | Accompanied by 2 allies 1016 | -10/Subcaves | Approached by a straggling Scientist 1021 | -10/Subcaves | Ambushed by Subdwellers from Twisted Machinery 1056 | -10/Subcaves | Core integrity fell below 20% 1064 | -10/Subcaves | Lost 4 allies 1065 | -10/Subcaves | Destroyed by DX-YC9(R) with Subdweller Laser Last Messages --------------- 01028_ Wheel destroyed. 01031_ O4-QWJ(c) destroyed. 01032_ Aluminum Leg fries itself beyond repair. 01033_ Trooper 1a destroyed. 01033_ Acquired Lgt. Nuclear Core. 01034_ Acquired 19 matter. 01039_ Subatomizers dissect the Aluminum Leg. 01040_ Lgt. Treads destroyed. 01045_ Ion Engine fries itself beyond repair. 01046_ G-47 Trooper destroyed. 01050_ Wheel destroyed. 01052_ Subatomizers dissect the Aluminum Leg. 01052_ Spread Laser destroyed. 01054_ Ion Engine destroyed. 01054_ Z9-BY6(R) destroyed. 01057_ Seismic Detector destroyed. 01059_ Aluminum Leg fries itself beyond repair. 01061_ Lgt. Assault Rifle destroyed. 01063_ Particle Gun fries itself beyond repair. 01065_ Subatomizers dissect the Aluminum Leg. Map ----- +----------------------------------------------------+ | ?????????????????????????????????????????????????? | | ?????????????????????????????????????????????????? | | ?????????????????????????????????????????????????? | | ?????????????????????????????????????????????????? | | ?????????????????????????????????????????????????? | | ?????????????????????????????????????????????????? | | ?????????????????????????????????????????????????? | | ?????????????????????????????????????????????????? | | ?????????????????????????????????????????????????? | | ?????????????????????????????????????????????????? | | ?????????????????????????????????????????????????? | | ?????????????????????????????????????????????????? | | ?????????????????????????????????????????????????? | | ?????????????????????????????????????????????????? | | ?????????????????????????????????????????????????? | | ?????????????????????????????????????????????????? | | ?????????????????????????????????????????????????? | | ?????????????????????????????????????????????????? | | ?????????????????????????????????????????????????? | | ??????????????????????######??######?????????????? | | ????????????????????### #### ####??????#???? | | ????????????????????# ; ;; ##???? #???? | | ???????????????????##; ##? #????? | | ???????????????????# # ##???? | | ????????????????????# # #???? | | ????????????????????# @ = % % #??? | | ????????????????????## = =%[ % #?? | | ???????????????????# R %* #### #?? | | ???????????????????## ; ;##??????????? | | ????????????????????# ;; ;#???????????? | | ????????????????????#### ######## ####????????? | | ???????????????????????##???????## " ""#????????? | | ???????????????????????????????? "" ""#???????? | | ??????????????????????????????# " " "#???????? | | ??????????????????????????????# " ###???????? | | ??????????????????????????????# ##?????????? | | ??????????????????????????????# #??????????? | | ??????????????????????????????## ??????????? | | ???????????????????????????????# ?????????? | | ???????????????????????????????## ## ????????? | | ????????????????????????????????##?? #????????? | | ???????????????????????????????????? ??????????? | | ???????????????????????????????????? ??????????? | | ???????????????????????????????????? ??????????? | | ???????????????????????????????????? " ??????????? | | ????????????????????????????????????? ??????????? | | ?????????????????????????????????????????????????? | | ?????????????????????????????????????????????????? | | ?????????????????????????????????????????????????? | | ?????????????????????????????????????????????????? | +----------------------------------------------------+ Best States ------------- Heat Dissipation 25 Energy Generation 10 Energy Capacity 250 Matter Stores 300 Matter Capacity 300 Sight Range 16 Terrain Scan Range 16 Terrain Scan Density 10 Utility Shielding 33 Evasion (%) 44 Recoil Reduction 1 Item Schematics ----------------- None Robot Schematics ------------------ None Fabricated ------------ Nothing Repaired ---------- Nothing Alien Tech Used ----------------- None Achievements -------------- None Challenges ------------ None Game ------ Seed EnergyOmegaAccelerator Manual? 0 Play Time 00:12:54 Cumulative 109.4 hours Start 2025.05.31 @ 23:22:23 End 2025.05.31 @ 23:34:15 Sessions 1 Manual Loads 0 Difficulty Rogue Special Mode None Game No. 59 Rogue 59 Adventurer 0 Explorer 0 Win Type - Total 4 Types 4/0/0/0/0/0/0/0/0/0 Lore% 32 Gallery% 54 Achievement% 46 Wizard Run 0 Options --------- Layout 0 ASCII 1 Keyboard 0 Movement Mouse Keybinds 0 Fullscreen 1 Font 20/X11 Map View 66x50 Zoom Use 0% Tactical HUD 1 Map Filters NONE Filters NONE Steam 1 RUN: cd003dd8-327f-468f-82f2-ae516ff2e733